fUSD/lending_fUSD_20250511
["ID","MTS","AMOUNT","RATE_DAILY","PERIOD"]
[360695472,1746934209916,-509.36232587,0.00018646,2]
[360695473,1746934209945,-509.36232587,0.00018646,2]
[360695474,1746934209974,-509.36232587,0.00018646,2]
[360695475,1746934210004,-509.36232587,0.00018646,2]
[360695476,1746934210036,-509.36232587,0.00018646,2]
[360695477,1746934210066,-509.36232587,0.00018646,2]
[360695478,1746934210093,-509.36232587,0.00018646,2]
[360695479,1746934210123,-509.36232587,0.00018646,2]
[360695480,1746934210154,-509.36232587,0.00018646,2]
[360695481,1746934210183,-509.36232587,0.00018646,2]
[360695482,1746934210212,-509.36232587,0.00018646,2]
[360695483,1746934210243,-509.36232587,0.00018646,2]
[360695484,1746934210272,-509.36232587,0.00018646,2]
[360695485,1746934210301,-509.36232587,0.00018646,2]
[360695486,1746934210330,-509.36232587,0.00018646,2]
[360695487,1746934210362,-509.36232587,0.00018646,2]
[360695488,1746934210392,-509.36232587,0.00018646,2]
[360695489,1746934210423,-509.36232587,0.00018646,2]
[360695490,1746934210456,-509.36232587,0.00018646,2]
[360695491,1746934210486,-509.36232587,0.00018646,2]
[360695492,1746934210518,-509.36232587,0.00018646,2]
[360695493,1746934210551,-509.36232587,0.00018646,2]
[360695494,1746934210579,-509.36232587,0.00018646,2]
[360695495,1746934210611,-509.36232587,0.00018646,2]
[360695496,1746934210644,-509.36232587,0.00018646,2]
[360695497,1746934210674,-509.36232587,0.00018646,2]
[360695498,1746934210706,-509.36232587,0.00018646,2]
[360695499,1746934210736,-509.36232587,0.00018646,2]
[360695500,1746934210765,-509.36232587,0.00018646,2]
[360695501,1746934210795,-509.36232587,0.00018646,2]
[360695502,1746934210826,-509.36232587,0.00018646,2]
[360695504,1746934210853,-509.36232587,0.00018646,2]
[360695505,1746934210881,-509.36232587,0.00018646,2]
[360695507,1746934210912,-509.36232587,0.00018646,2]
[360695508,1746934210941,-509.36232587,0.00018646,2]
[360695509,1746934210973,-509.36232587,0.00018646,2]
[360695510,1746934211005,-509.36232587,0.00018646,2]
[360695511,1746934211036,-509.36232587,0.00018646,2]
[360695512,1746934211067,-509.36232587,0.00018646,2]
[360695513,1746934211095,-1814.17313358,0.00018646,2]
[360695514,1746934211124,-1814.17313358,0.00018646,2]
[360695515,1746934211153,-1814.17313358,0.00018646,2]
[360695516,1746934211182,-1814.17313358,0.00018646,2]
[360695517,1746934211211,-1814.17313358,0.00018646,2]
[360695518,1746934211241,-1814.17313358,0.00018646,2]
[360695519,1746934211270,-1814.17313358,0.00018646,2]
[360695520,1746934211299,-1814.17313358,0.00018646,2]
[360695521,1746934211326,-1814.17313358,0.00018646,2]
[360695522,1746934211354,-1814.17313358,0.00018646,2]
[360695523,1746934211383,-1814.17313358,0.00018646,2]
[360695524,1746934211412,-1814.17313358,0.00018646,2]
[360695525,1746934211443,-1814.17313358,0.00018646,2]
[360695526,1746934211472,-1814.17313358,0.00018646,2]
[360695527,1746934211501,-1814.17313358,0.00018646,2]
[360695528,1746934211535,-1814.17313358,0.00018646,2]
[360695529,1746934211565,-1814.17313358,0.00018646,2]
[360695530,1746934211594,-1814.17313358,0.00018646,2]
[360695531,1746934211628,-1814.17313358,0.00018646,2]
[360695532,1746934211659,-1814.17313358,0.00018646,2]
[360695533,1746934211689,-1814.17313358,0.00018646,2]
[360695534,1746934211718,-1814.17313358,0.00018646,2]
[360695535,1746934211749,-1814.17313358,0.00018646,2]
[360695536,1746934211777,-758.33820002,0.00018646,2]
[360695540,1746934231698,-300.0,0.00018645,2]
[360695542,1746934231708,-1055.83493356,0.00018646,2]
[360695544,1746934231717,-358.58134776,0.00018646,2]
[360695547,1746934231784,-1348.16384016,0.00018646,2]
[360695548,1746934231797,-107.42794566,0.00018646,2]
[360695549,1746934231807,-1814.17313358,0.00018646,2]
[360695550,1746934231817,-1814.17313358,0.00018646,2]
[360695551,1746934231827,-1814.17313358,0.00018646,2]
[360695552,1746934231838,-1814.17313358,0.00018646,2]
[360695553,1746934231846,-1814.17313358,0.00018646,2]
[360695554,1746934231856,-1814.17313356,0.00018646,2]
[360695555,1746934231865,-780.33642284,0.00018648,2]
[360695556,1746934232291,-23119.66357716,0.00018648,2]
[360695557,1746934232300,-189.55,0.00018657,2]
[360695558,1746934232309,-160.36118427,0.00018706,2]
[360695559,1746934232318,-218.73372926,0.00018706,2]
[360695560,1746934232327,-153.11361048,0.00018706,2]
[360695561,1746934232335,-197.9,0.00018707,2]
[360695562,1746934232344,-809.54,0.00018881,2]
[360695563,1746934232353,-238.14515265,0.00018973,2]
[360695564,1746934232362,-207.4,0.00018998,2]
[360695565,1746934232370,-668.65185757,0.00018998,2]
[360695566,1746934232379,-875.41375492,0.00019,2]
[360695567,1746934232388,-300.0,0.00019,2]
[360695568,1746934232397,-250.0,0.00019099,2]
[360695569,1746934232407,-192.28320491,0.00019178,2]
[360695570,1746934232416,-217.64433685,0.00019178,2]
[360695571,1746934232426,-500.0,0.00019178,2]
[360695572,1746934232435,-500.0,0.00019178,2]
[360695573,1746934232445,-237.65539847,0.00019178,2]
[360695574,1746934232456,-500.0,0.00019178,2]
[360695575,1746934232466,-500.0,0.00019178,2]
[360695576,1746934232475,-500.0,0.00019178,2]
[360695577,1746934232485,-500.0,0.00019178,2]
[360695578,1746934232494,-500.0,0.00019178,2]
[360695579,1746934232503,-500.0,0.00019178,2]
[360695580,1746934232512,-500.0,0.00019178,2]
[360695581,1746934232521,-500.0,0.00019178,2]
[360695582,1746934232531,-500.0,0.00019178,2]
[360695583,1746934232540,-500.0,0.00019178,2]
[360695584,1746934232549,-500.0,0.00019178,2]
[360695585,1746934232558,-387.49074685,0.00019178,2]
[360695586,1746934232567,-151.0,0.00019178,2]
[360695587,1746934232576,-46791.4418,0.00019381,2]
[360695588,1746934232585,-4834.3723,0.00019479,2]
[360695589,1746934232594,-214.28082046,0.00019479,2]
[360695591,1746934232603,-5128.32336671,0.0001948,2]
[360695592,1746934232612,-500.0,0.00019481,2]
[360695593,1746934232620,-4434.6902499,0.00019481,2]
[360695594,1746934232630,-939.44690143,0.00019481,2]
[360695595,1746934232667,-1717.79914867,0.00019481,2]
[360695596,1746934232676,-171.68209272,0.0001949,2]
[360695597,1746934232685,-5128.32336662,0.00019527,2]
[360695598,1746934232694,-505.23276564,0.00019548,2]
[360695599,1746934232706,-726.12,0.00019569,2]
[360695600,1746934232715,-171.68209271,0.00019572,2]
[360695601,1746934232725,-235.1987499,0.00019573,2]
[360695602,1746934232734,-500.83266963,0.00019573,2]
[360695603,1746934232743,-501.23301826,0.00019573,2]
[360695604,1746934232753,-500.88830568,0.00019573,2]
[360695605,1746934232762,-500.27962824,0.00019573,2]
[360695606,1746934232771,-401.38802093,0.00019573,2]
[360695607,1746934232780,-400.0,0.00019573,2]
[360695608,1746934232790,-400.0,0.00019573,2]
[360695609,1746934232799,-400.0,0.00019573,2]
[360695610,1746934232810,-400.0,0.00019573,2]
[360695611,1746934232820,-401.12269151,0.00019573,2]
[360695612,1746934232830,-400.0,0.00019573,2]
[360695613,1746934232841,-400.0,0.00019573,2]
[360695614,1746934232851,-340.92012357,0.00019573,2]
[360695615,1746934232860,-400.0,0.00019573,2]
[360695616,1746934232869,-269.66828556,0.00019573,2]
[360695617,1746934232879,-400.0,0.00019573,2]
[360695618,1746934232888,-184.66562441,0.00019573,2]
[360695619,1746934232897,-400.46532858,0.00019573,2]
[360695620,1746934232907,-400.0,0.00019573,2]
[360695621,1746934232917,-400.0,0.00019573,2]
[360695622,1746934232926,-513.44244413,0.00019573,2]
[360695623,1746934232935,-5128.32336662,0.00019573,2]
[360695624,1746934232945,-321.08744799,0.00019576,2]
[360695625,1746934232960,-400.0,0.00019578,2]
[360695626,1746934232969,-400.0,0.00019578,2]
[360695627,1746934232978,-400.0,0.00019578,2]
[360695628,1746934232987,-400.0,0.00019578,2]
[360695629,1746934232997,-403.06249395,0.00019578,2]
[360695630,1746934233007,-400.0,0.00019578,2]
[360695631,1746934233016,-484.30711968,0.00019578,2]
[360695632,1746934233026,-400.0,0.00019578,2]
[360695633,1746934233034,-402.14956767,0.00019578,2]
[360695634,1746934233044,-400.0,0.00019578,2]
[360695635,1746934233054,-400.0,0.00019578,2]
[360695636,1746934233063,-400.0,0.00019578,2]
[360695637,1746934233072,-400.0,0.00019578,2]
[360695638,1746934233081,-400.0,0.00019578,2]
[360695639,1746934233090,-400.0,0.00019578,2]
[360695640,1746934233099,-400.0,0.00019578,2]
[360695641,1746934233108,-400.0,0.00019578,2]
[360695643,1746934233117,-400.0,0.00019578,2]
[360695644,1746934233127,-400.0,0.00019578,2]
[360695645,1746934233137,-400.0,0.00019578,2]
[360695646,1746934233146,-400.0,0.00019578,2]
[360695647,1746934233155,-400.0,0.00019578,2]
[360695648,1746934233165,-553.81,0.00019578,2]
[360695649,1746934233174,-400.0,0.00019578,2]
[360695650,1746934233184,-400.0,0.00019578,2]
[360695651,1746934233194,-400.0,0.00019578,2]
[360695652,1746934233205,-1299.66,0.00019578,2]
[360695653,1746934233215,-554.97,0.00019578,2]
[360695654,1746934233225,-400.0,0.00019578,2]
[360695655,1746934233235,-400.0,0.00019578,2]
[360695656,1746934233245,-262.25377812,0.00019578,2]
[360695657,1746934233255,-1376.73,0.00019578,2]
[360695658,1746934233265,-269.80379834,0.00019578,2]
[360695659,1746934233274,-323.94728056,0.00019578,2]
[360695660,1746934233284,-400.0,0.00019578,2]
[360695661,1746934233293,-400.0,0.00019578,2]
[360695662,1746934233303,-400.0,0.00019578,2]
[360695663,1746934233312,-400.0,0.00019578,2]
[360695664,1746934233321,-400.0,0.00019578,2]
[360695665,1746934233330,-400.0,0.00019578,2]
[360695666,1746934233339,-400.29539025,0.00019578,2]
[360695667,1746934233349,-400.0,0.00019578,2]
[360695668,1746934233358,-400.0,0.00019578,2]
[360695669,1746934233368,-400.0,0.00019578,2]
[360695670,1746934233377,-400.0,0.00019578,2]
[360695671,1746934233386,-401.52004175,0.00019578,2]
[360695672,1746934233396,-400.0,0.00019578,2]
[360695673,1746934233405,-400.0,0.00019578,2]
[360695674,1746934233415,-401.09087779,0.00019578,2]
[360695675,1746934233424,-400.0,0.00019578,2]
[360695676,1746934233433,-433.54977012,0.00019578,2]
[360695677,1746934233442,-400.0,0.00019578,2]
[360695678,1746934233452,-400.0,0.00019578,2]
[360695679,1746934233461,-739.49,0.00019578,2]
[360695680,1746934233470,-400.0,0.00019578,2]
[360695681,1746934233479,-480.78134458,0.00019578,2]
[360695682,1746934233489,-400.0,0.00019578,2]
[360695683,1746934233498,-400.0,0.00019578,2]
[360695684,1746934233507,-493.24795701,0.00019578,2]
[360695685,1746934233516,-157.602147,0.00019578,2]
[360695686,1746934233525,-931.88,0.00019578,2]
[360695687,1746934233534,-400.0,0.00019578,2]
[360695688,1746934233544,-400.99775954,0.00019578,2]
[360695689,1746934233553,-597.70502,0.00019578,2]
[360695690,1746934233562,-400.0,0.00019578,2]
[360695691,1746934233571,-326.64590107,0.00019578,2]
[360695692,1746934233580,-400.0,0.00019578,2]
[360695693,1746934233589,-400.0,0.00019578,2]
[360695694,1746934233598,-400.0,0.00019578,2]
[360695695,1746934233607,-400.0,0.00019578,2]
[360695696,1746934233616,-3719.597547,0.00019578,2]
[360695697,1746934233626,-400.0,0.00019578,2]
[360695698,1746934233635,-400.0,0.00019578,2]
[360695699,1746934233644,-1088.286402,0.00019578,2]
[360695700,1746934233653,-400.0,0.00019578,2]
[360695701,1746934233662,-400.0,0.00019578,2]
[360695702,1746934233671,-789.699,0.00019579,2]
[360695703,1746934233682,-404.66696612,0.00019579,2]
[360695704,1746934233692,-406.01588332,0.00019579,2]
[360695705,1746934233702,-400.0,0.00019579,2]
[360695706,1746934233711,-400.0,0.00019579,2]
[360695707,1746934233720,-400.0,0.00019579,2]
[360695708,1746934233730,-534.04626006,0.00019579,2]
[360695709,1746934233738,-400.0,0.00019579,2]
[360695710,1746934233747,-400.0,0.00019579,2]
[360695711,1746934233756,-400.0,0.00019579,2]
[360695712,1746934233765,-400.0,0.00019579,2]
[360695713,1746934233775,-400.0,0.00019579,2]
[360695714,1746934233786,-431.42,0.00019579,2]
[360695715,1746934233795,-406.46368965,0.00019579,2]
[360695716,1746934233804,-400.0,0.00019579,2]
[360695717,1746934233814,-400.0,0.00019579,2]
[360695718,1746934233823,-400.0,0.00019579,2]
[360695719,1746934233832,-400.0,0.00019579,2]
[360695720,1746934233842,-400.0,0.00019579,2]
[360695721,1746934233851,-400.0,0.00019579,2]
[360695722,1746934233860,-400.0,0.00019579,2]
[360695723,1746934233869,-400.0,0.00019579,2]
[360695724,1746934233878,-400.0,0.00019579,2]
[360695725,1746934233888,-400.0,0.00019579,2]
[360695726,1746934233897,-400.0,0.00019579,2]
[360695727,1746934233906,-506.29949374,0.00019579,2]
[360695728,1746934233915,-400.0,0.00019579,2]
[360695729,1746934233924,-400.0,0.00019579,2]
[360695730,1746934233934,-400.0,0.00019579,2]
[360695731,1746934233943,-400.0,0.00019579,2]
[360695732,1746934233955,-400.0,0.00019579,2]
[360695733,1746934233965,-400.0,0.00019579,2]
[360695734,1746934233974,-400.0,0.00019579,2]
[360695735,1746934233983,-400.0,0.00019579,2]
[360695736,1746934233992,-400.0,0.00019579,2]
[360695737,1746934234002,-401.69765442,0.00019579,2]
[360695738,1746934234011,-400.0,0.00019579,2]
[360695739,1746934234020,-400.0,0.00019579,2]
[360695740,1746934234030,-400.0,0.00019579,2]
[360695741,1746934234040,-400.0,0.00019579,2]
[360695742,1746934234049,-400.0,0.00019579,2]
[360695743,1746934234058,-400.0,0.00019579,2]
[360695744,1746934234068,-400.0,0.00019579,2]
[360695745,1746934234077,-400.0,0.00019579,2]
[360695746,1746934234086,-400.0,0.00019579,2]
[360695747,1746934234095,-502.12194016,0.00019579,2]
[360695748,1746934234103,-400.0,0.00019579,2]
[360695749,1746934234113,-400.0,0.00019579,2]
[360695750,1746934234123,-400.0,0.00019579,2]
[360695751,1746934234132,-400.0,0.00019579,2]
[360695752,1746934234141,-400.0,0.00019579,2]
[360695753,1746934234152,-400.0,0.00019579,2]
[360695754,1746934234161,-400.0,0.00019579,2]
[360695755,1746934234170,-157.15355269,0.00019579,2]
[360695767,1746934237744,-400.0,0.00019573,2]
[360695768,1746934237753,-109.86973183,0.00019573,2]
[360695769,1746934237854,-294.39860254,0.00019573,2]
[360695770,1746934237863,-315.64429308,0.00019573,2]
[360695771,1746934237872,-400.0,0.00019573,2]
[360695772,1746934237882,-103.21357054,0.00019573,2]
[360695773,1746934237893,-296.78642946,0.00019573,2]
[360695774,1746934237903,-400.0,0.00019573,2]
[360695775,1746934237912,-142.15336741,0.00019573,2]
[360695776,1746934237926,-257.84663259,0.00019573,2]
[360695777,1746934237935,-400.0,0.00019573,2]
[360695778,1746934237945,-400.0,0.00019578,2]
[360695779,1746934237957,-400.0,0.00019578,2]
[360695780,1746934237969,-242.84644731,0.00019579,2]
[360695781,1746934237978,-400.0,0.00019579,2]
[360695782,1746934237988,-400.0,0.00019579,2]
[360695783,1746934237999,-400.0,0.00019579,2]
[360695784,1746934238008,-400.0,0.00019579,2]
[360695785,1746934238018,-400.0,0.00019579,2]
[360695786,1746934238028,-400.0,0.00019579,2]
[360695787,1746934238038,-400.0,0.00019579,2]
[360695788,1746934238048,-400.0,0.00019579,2]
[360695789,1746934238058,-400.0,0.00019579,2]
[360695790,1746934238067,-400.0,0.00019579,2]
[360695791,1746934238076,-400.0,0.00019579,2]
[360695792,1746934238085,-400.0,0.00019579,2]
[360695793,1746934238095,-400.0,0.00019579,2]
[360695794,1746934238104,-400.0,0.00019579,2]
[360695795,1746934238114,-400.0,0.00019579,2]
[360695796,1746934238123,-484.47906853,0.00019579,2]
[360695797,1746934238132,-400.0,0.00019579,2]
[360695798,1746934238143,-500.0,0.00019579,2]
[360695799,1746934238152,-400.0,0.00019579,2]
[360695800,1746934238161,-400.0,0.00019579,2]
[360695801,1746934238171,-400.0,0.00019579,2]
[360695802,1746934238181,-407.81973218,0.00019579,2]
[360695803,1746934238191,-403.89691577,0.00019579,2]
[360695804,1746934238201,-400.0,0.00019579,2]
[360695805,1746934238211,-400.0,0.00019579,2]
[360695806,1746934238220,-400.0,0.00019579,2]
[360695807,1746934238417,-400.0,0.00019579,2]
[360695808,1746934238427,-400.0,0.00019579,2]
[360695809,1746934238436,-301.68224759,0.00019579,2]
[360695810,1746934238445,-400.0,0.00019579,2]
[360695811,1746934238456,-400.0,0.00019579,2]
[360695812,1746934238466,-400.0,0.00019579,2]
[360695813,1746934238475,-400.0,0.00019579,2]
[360695814,1746934238484,-400.0,0.00019579,2]
[360695815,1746934238494,-410.38331322,0.00019579,2]
[360695816,1746934238503,-400.0,0.00019579,2]
[360695817,1746934238513,-400.0,0.00019579,2]
[360695818,1746934238524,-400.0,0.00019579,2]
[360695819,1746934238533,-400.0,0.00019579,2]
[360695820,1746934238543,-400.0,0.00019579,2]
[360695821,1746934238554,-400.0,0.00019579,2]
[360695822,1746934238563,-400.0,0.00019579,2]
[360695823,1746934238572,-400.0,0.00019579,2]
[360695824,1746934238581,-400.0,0.00019579,2]
[360695825,1746934238593,-400.0,0.00019579,2]
[360695826,1746934238604,-400.0,0.00019579,2]
[360695827,1746934238614,-400.0,0.00019579,2]
[360695828,1746934238623,-400.0,0.00019579,2]
[360695829,1746934238633,-400.0,0.00019579,2]
[360695830,1746934238644,-400.0,0.00019579,2]
[360695831,1746934238654,-400.0,0.00019579,2]
[360695832,1746934238663,-230.99014688,0.00019579,2]
[360695833,1746934238673,-400.0,0.00019579,2]
[360695834,1746934238682,-400.0,0.00019579,2]
[360695835,1746934238692,-400.0,0.00019579,2]
[360695836,1746934238703,-400.0,0.00019579,2]
[360695837,1746934238712,-403.95810399,0.00019579,2]
[360695838,1746934238721,-400.0,0.00019579,2]
[360695839,1746934238731,-400.0,0.00019579,2]
[360695840,1746934238740,-400.0,0.00019579,2]
[360695841,1746934238750,-400.0,0.00019579,2]
[360695842,1746934238759,-400.0,0.00019579,2]
[360695843,1746934238769,-400.0,0.00019579,2]
[360695844,1746934238778,-400.0,0.00019579,2]
[360695845,1746934238787,-400.0,0.00019579,2]
[360695846,1746934238796,-400.0,0.00019579,2]
[360695847,1746934238805,-285.45959089,0.00019579,2]
[360695848,1746934238815,-400.0,0.00019579,2]
[360695849,1746934238824,-469.47017069,0.00019579,2]
[360695850,1746934238833,-400.0,0.00019579,2]
[360695851,1746934238843,-154.27685645,0.00019579,2]
[360695852,1746934238852,-400.0,0.00019579,2]
[360695853,1746934238861,-400.0,0.00019579,2]
[360695854,1746934238870,-400.0,0.00019579,2]
[360695855,1746934238880,-400.0,0.00019579,2]
[360695856,1746934238891,-288.61191518,0.00019579,2]
[360695857,1746934238902,-400.0,0.00019579,2]
[360695858,1746934238912,-500.0,0.00019579,2]
[360695859,1746934238923,-400.0,0.00019579,2]
[360695860,1746934238935,-400.0,0.00019579,2]
[360695861,1746934238945,-241.55604427,0.00019579,2]
[360695862,1746934238956,-156.69246144,0.00019579,2]
[360695863,1746934238968,-400.0,0.00019579,2]
[360695864,1746934238977,-195.4503008,0.00019579,2]
[360695865,1746934238987,-400.0,0.00019579,2]
[360695866,1746934238995,-400.0,0.00019579,2]
[360695867,1746934239005,-400.0,0.00019579,2]
[360695868,1746934239015,-400.0,0.00019579,2]
[360695869,1746934239024,-405.44340776,0.00019579,2]
[360695870,1746934239034,-400.0,0.00019579,2]
[360695871,1746934239043,-400.0,0.00019579,2]
[360695872,1746934239052,-400.0,0.00019579,2]
[360695873,1746934239061,-400.0,0.00019579,2]
[360695874,1746934239070,-400.0,0.00019579,2]
[360695875,1746934239079,-400.0,0.00019579,2]
[360695876,1746934239088,-400.0,0.00019579,2]
[360695877,1746934239097,-400.0,0.00019579,2]
[360695878,1746934239107,-402.4,0.00019579,2]
[360695879,1746934239116,-400.0,0.00019579,2]
[360695880,1746934239126,-400.0,0.00019579,2]
[360695881,1746934239135,-490.14285136,0.00019579,2]
[360695882,1746934239144,-399.33342095,0.00019579,2]
[360695883,1746934239153,-400.0,0.00019579,2]
[360695884,1746934239162,-400.0,0.00019579,2]
[360695885,1746934239171,-186.49430053,0.00019579,2]
[360695886,1746934239180,-400.0,0.00019579,2]
[360695887,1746934239190,-400.0,0.00019579,2]
[360695888,1746934239200,-400.0,0.00019579,2]
[360695889,1746934239210,-400.0,0.00019579,2]
[360695890,1746934239220,-162.39685525,0.00019579,2]
[360695891,1746934239229,-344.16738452,0.00019579,2]
[360695892,1746934239239,-400.0,0.00019579,2]
[360695893,1746934239249,-400.0,0.00019579,2]
[360695894,1746934239258,-400.0,0.00019579,2]
[360695895,1746934239269,-486.4346118,0.00019579,2]
[360695896,1746934239278,-435.15859248,0.00019579,2]
[360695897,1746934239287,-1623.63,0.00019579,2]
[360695898,1746934239296,-400.0,0.00019579,2]
[360695899,1746934239305,-194.97332732,0.00019579,2]
[360695900,1746934239315,-530.76212839,0.00019579,2]
[360695901,1746934239326,-400.0,0.00019579,2]
[360695902,1746934239337,-400.0,0.00019579,2]
[360695903,1746934239347,-400.0,0.00019579,2]
[360695904,1746934239357,-429.27547567,0.00019579,2]
[360695905,1746934239367,-400.0,0.00019579,2]
[360695906,1746934239377,-400.0,0.00019579,2]
[360695907,1746934239387,-400.0,0.00019579,2]
[360695908,1746934239396,-400.0,0.00019579,2]
[360695909,1746934239406,-400.0,0.00019579,2]
[360695910,1746934239416,-400.0,0.00019579,2]
[360695911,1746934239426,-400.0,0.00019579,2]
[360695912,1746934239436,-402.0283169,0.00019579,2]
[360695913,1746934239445,-400.0,0.00019579,2]
[360695914,1746934239456,-400.0,0.00019579,2]
[360695915,1746934239465,-400.0,0.00019579,2]
[360695916,1746934239475,-400.0,0.00019579,2]
[360695917,1746934239484,-422.32733024,0.00019579,2]
[360695918,1746934239493,-400.0,0.00019579,2]
[360695919,1746934239502,-400.69191706,0.00019579,2]
[360695920,1746934239512,-400.0,0.00019579,2]
[360695921,1746934239521,-401.84377816,0.00019579,2]
[360695922,1746934239531,-400.0,0.00019579,2]
[360695923,1746934239540,-400.0,0.00019579,2]
[360695924,1746934239550,-400.0,0.00019579,2]
[360695925,1746934239560,-400.0,0.00019579,2]
[360695926,1746934239569,-520.79043219,0.00019579,2]
[360695927,1746934239578,-400.0,0.00019579,2]
[360695928,1746934239587,-400.0,0.00019579,2]
[360695929,1746934239596,-400.0,0.00019579,2]
[360695930,1746934239606,-401.04659093,0.00019579,2]
[360695931,1746934239615,-400.0,0.00019579,2]
[360695932,1746934239624,-400.0,0.00019579,2]
[360695933,1746934239633,-400.0,0.00019579,2]
[360695934,1746934239642,-400.0,0.00019579,2]
[360695935,1746934239651,-400.0,0.00019579,2]
[360695936,1746934239660,-400.0,0.00019579,2]
[360695937,1746934239669,-439.7239682,0.00019579,2]
[360695938,1746934239678,-400.0,0.00019579,2]
[360695939,1746934239688,-400.0,0.00019579,2]
[360695940,1746934239697,-400.0,0.00019579,2]
[360695941,1746934239707,-2022.80956379,0.00019579,2]
[360695942,1746934239715,-400.0,0.00019579,2]
[360695943,1746934239724,-400.0,0.00019579,2]
[360695944,1746934239733,-400.179524,0.00019579,2]
[360695945,1746934239743,-400.0,0.00019579,2]
[360695946,1746934239751,-400.0,0.00019579,2]
[360695947,1746934239761,-317.4939183,0.00019579,2]
[360695948,1746934239770,-400.0,0.00019579,2]
[360695949,1746934239779,-400.0,0.00019579,2]
[360695950,1746934239788,-450.65513482,0.00019579,2]
[360695951,1746934239797,-400.0,0.00019579,2]
[360695952,1746934239807,-400.0,0.00019579,2]
[360695953,1746934239816,-417.99669882,0.00019579,2]
[360695954,1746934239825,-400.0,0.00019579,2]
[360695955,1746934239834,-400.0,0.00019579,2]
[360695956,1746934239844,-400.0,0.00019579,2]
[360695957,1746934239853,-400.0,0.00019579,2]
[360695958,1746934239864,-400.0,0.00019579,2]
[360695959,1746934239874,-400.0,0.00019579,2]
[360695960,1746934239884,-400.0,0.00019579,2]
[360695961,1746934239893,-400.0,0.00019579,2]
[360695962,1746934239903,-400.0,0.00019579,2]
[360695963,1746934239913,-400.0,0.00019579,2]
[360695964,1746934239922,-400.0,0.00019579,2]
[360695965,1746934239932,-400.0,0.00019579,2]
[360695966,1746934239941,-734.8,0.00019579,2]
[360695967,1746934239952,-400.0,0.00019579,2]
[360695968,1746934239966,-553.81,0.00019579,2]
[360695969,1746934239975,-400.0,0.00019579,2]
[360695970,1746934239985,-400.0,0.00019579,2]
[360695971,1746934239995,-400.0,0.00019579,2]
[360695972,1746934240005,-400.0,0.00019579,2]
[360695973,1746934240014,-400.0,0.00019579,2]
[360695974,1746934240023,-401.78409162,0.00019579,2]
[360695975,1746934240033,-400.0,0.00019579,2]
[360695976,1746934240042,-400.0,0.00019579,2]
[360695977,1746934240051,-401.54717264,0.00019579,2]
[360695978,1746934240060,-339.2469984,0.00019579,2]
[360695979,1746934240069,-400.0,0.00019579,2]
[360695980,1746934240079,-400.43520803,0.00019579,2]
[360695981,1746934240088,-400.0,0.00019579,2]
[360695982,1746934240097,-400.0,0.00019579,2]
[360695983,1746934240107,-1299.66,0.00019579,2]
[360695984,1746934240116,-400.0,0.00019579,2]
[360695985,1746934240125,-401.29784016,0.00019579,2]
[360695986,1746934240134,-400.0,0.00019579,2]
[360695987,1746934240143,-780.64,0.00019579,2]
[360695988,1746934240152,-400.0,0.00019579,2]
[360695989,1746934240161,-400.0,0.00019579,2]
[360695990,1746934240170,-400.33975803,0.00019579,2]
[360695991,1746934240179,-554.97,0.00019579,2]
[360695992,1746934240188,-400.0,0.00019579,2]
[360695993,1746934240198,-46.90711583,0.00019579,2]